fUST/lending_fUST_20260127
["ID","MTS","AMOUNT","RATE_DAILY","PERIOD"]
[403716499,1769503839172,-500.0,0.0001518,2]
[403716500,1769503839184,-500.0,0.0001518,2]
[403716501,1769503839197,-720.0,0.00015187,2]
[403716502,1769503839207,-500.0,0.00015192,2]
[403716503,1769503839219,-648.81,0.00015192,2]
[403716504,1769503839230,-500.0,0.00015192,2]
[403716505,1769503839241,-500.0,0.00015192,2]
[403716506,1769503839253,-500.0,0.00015192,2]
[403716507,1769503839265,-500.0,0.00015192,2]
[403716508,1769503839277,-296.9095084,0.00015262,2]
[403716509,1769503839288,-500.0,0.00015317,2]
[403716510,1769503839299,-500.0,0.00015317,2]
[403716511,1769503839310,-419.63216851,0.00015454,2]
[403716512,1769503839320,-355.45611552,0.00015454,2]
[403716513,1769503839331,-500.0,0.00015554,2]
[403716514,1769503839342,-500.0,0.00015554,2]
[403716515,1769503839353,-500.0,0.00015554,2]
[403716516,1769503839363,-500.0,0.00015554,2]
[403716517,1769503839374,-500.0,0.00015554,2]
[403716518,1769503839387,-500.0,0.00015554,2]
[403716519,1769503839398,-1572.69,0.00015559,2]
[403716520,1769503839408,-167.744615,0.00015872,2]
[403716521,1769503839419,-587.0,0.00016259,2]
[403716522,1769503839431,-250.0,0.00016438,2]
[403716523,1769503839442,-500.0,0.00016605,2]
[403716524,1769503839453,-500.0,0.00016605,2]
[403716525,1769503839464,-864.0,0.00016706,2]
[403716526,1769503839475,-342.20078934,0.00017261,2]
[403716527,1769503839486,-434.73,0.00017296,2]
[403716528,1769503839496,-689.379594,0.00017325,2]
[403716529,1769503839507,-250.0,0.00017362,2]
[403716530,1769503839517,-151.0,0.000174,2]
[403716531,1769503839528,-151.0,0.000174,2]
[403716532,1769503839543,-151.0,0.000174,2]
[403716533,1769503839555,-151.0,0.000174,2]
[403716534,1769503839565,-151.0,0.000174,2]
[403716535,1769503839577,-151.0,0.000174,2]
[403716536,1769503839587,-151.0,0.000174,2]
[403716537,1769503839599,-151.0,0.000174,2]
[403716538,1769503839610,-151.0,0.000174,2]
[403716539,1769503839621,-151.0,0.000174,2]
[403716540,1769503839632,-151.0,0.000174,2]
[403716541,1769503839642,-151.0,0.000174,2]
[403716542,1769503839653,-151.0,0.000174,2]
[403716543,1769503839664,-151.0,0.000174,2]
[403716544,1769503839675,-151.0,0.000174,2]
[403716545,1769503839686,-151.0,0.000174,2]
[403716546,1769503839698,-151.0,0.000174,2]
[403716547,1769503839709,-151.0,0.000174,2]
[403716548,1769503839719,-151.0,0.000174,2]
[403716549,1769503839730,-638.66,0.000174,2]
[403716550,1769503839745,-745.82,0.000174,2]
[403716551,1769503839755,-173.76,0.00017415,3]
[403716552,1769503839766,-521.33,0.00017415,3]
[403716553,1769503839777,-1000000.0,0.00017425,2]
[403716554,1769503839788,-823.0,0.00017821,2]
[403716555,1769503839799,-1000.0,0.00018377,2]
[403716556,1769503839810,-553.64373807,0.00018404,2]
[403716557,1769503839822,-30000.0,0.00018404,2]
[403716558,1769503839832,-160.0,0.00018404,2]
[403716560,1769503839842,-160.0,0.00018404,2]
[403716561,1769503839853,-151.0,0.00018404,2]
[403716562,1769503839864,-151.0,0.00018404,2]
[403716563,1769503839874,-160.0,0.00018404,2]
[403716564,1769503839884,-278.15468107,0.00018404,2]
[403716565,1769503839895,-151.0,0.00018404,2]
[403716566,1769503839906,-151.0,0.00018404,2]
[403716567,1769503839917,-151.0,0.00018404,2]
[403716568,1769503839927,-151.0,0.00018404,2]
[403716569,1769503839937,-250.0,0.00018404,2]
[403716570,1769503839947,-151.0,0.00018404,2]
[403716571,1769503839958,-250.0,0.00018404,2]
[403716572,1769503839968,-2674.60743027,0.00018404,2]
[403716573,1769503839978,-151.0,0.00018404,2]
[403716574,1769503839988,-250.0,0.00018404,2]
[403716576,1769503839998,-151.0,0.00018404,2]
[403716578,1769503840008,-250.0,0.00018404,2]
[403716579,1769503840019,-151.0,0.00018404,2]
[403716580,1769503840029,-151.0,0.00018404,2]
[403716581,1769503840039,-250.0,0.00018404,2]
[403716582,1769503840050,-151.0,0.00018404,2]
[403716583,1769503840060,-250.0,0.00018404,2]
[403716584,1769503840072,-201.93286099,0.00018404,2]
[403716585,1769503840084,-151.0,0.00018404,2]
[403716586,1769503840096,-250.0,0.00018404,2]
[403716587,1769503840107,-209.40437684,0.00018404,2]
[403716588,1769503840118,-151.0,0.00018404,2]
[403716589,1769503840130,-250.0,0.00018404,2]
[403716590,1769503840143,-217.15233878,0.00018404,2]
[403716591,1769503840153,-151.0,0.00018404,2]
[403716593,1769503840163,-250.0,0.00018404,2]
[403716594,1769503840174,-225.18697532,0.00018404,2]
[403716595,1769503840182,-164.81135061,0.00018404,2]
[403716596,1769503840193,-250.0,0.00018404,2]
[403716597,1769503840203,-668.65185757,0.00018404,2]
[403716599,1769503840212,-233.51889341,0.00018404,2]
[403716600,1769503840221,-162.380719,0.00018404,2]
[403716601,1769503840231,-250.0,0.00018404,2]
[403716602,1769503840242,-242.15909246,0.00018404,2]
[403716622,1769503840434,-251.11897888,0.00018404,2]
[403716625,1769503840448,-500.0,0.00018404,2]
[403716627,1769503840458,-260.4103811,0.00018404,2]
[403716629,1769503840467,-270.0455652,0.00018404,2]
[403716631,1769503840475,-250.0,0.00018404,2]
[403716633,1769503840484,-151.0,0.00018404,2]
[403716634,1769503840493,-280.03725112,0.00018404,2]
[403716637,1769503840503,-151.0,0.00018404,2]
[403716640,1769503840512,-290.39862941,0.00018404,2]
[403716643,1769503840521,-151.0,0.00018404,2]
[403716645,1769503840530,-301.1433787,0.00018404,2]
[403716647,1769503840540,-151.0,0.00018404,2]
[403716649,1769503840549,-151.0,0.00018404,2]
[403716651,1769503840557,-201.932861,0.00018404,2]
[403716653,1769503840566,-151.0,0.00018404,2]
[403716655,1769503840576,-151.0,0.00018404,2]
[403716657,1769503840584,-151.0,0.00018404,2]
[403716659,1769503840594,-151.0,0.00018404,2]
[403716661,1769503840604,-151.0,0.00018404,2]
[403716663,1769503840613,-151.0,0.00018404,2]
[403716665,1769503840622,-397.91,0.00018668,2]
[403716667,1769503840631,-869.45,0.00018768,2]
[403716669,1769503840640,-152.3,0.00018768,2]
[403716671,1769503840649,-152.3,0.00018768,2]
[403716673,1769503840659,-152.28,0.00018768,2]
[403716674,1769503840669,-347.52,0.00018785,3]
[403716677,1769503840678,-869.45,0.00018868,2]
[403716679,1769503840688,-303.10001603,0.000189,2]
[403716681,1769503840697,-303.10001603,0.000189,2]
[403716683,1769503840706,-284.15615338,0.00018926,2]
[403716685,1769503840716,-574.12855637,0.00018952,2]
[403716687,1769503840726,-31110.0,0.00018952,2]
[403716689,1769503840735,-2773.56790519,0.00018952,2]
[403716691,1769503840744,-693.3919763,0.00018952,2]
[403716693,1769503840753,-10000.0,0.00019,2]
[403716695,1769503840762,-10000.0,0.00019,2]
[403716697,1769503840771,-157.69654565,0.00019041,30]
[403716699,1769503840780,-168.0,0.00019063,2]
[403716701,1769503840789,-450.84061434,0.00019089,2]
[403716703,1769503840798,-811.51310582,0.00019089,2]
[403716704,1769503840808,-1442.6899659,0.00019089,2]
[403716706,1769503840818,-2254.20307172,0.00019089,2]
[403716709,1769503840828,-481.17296381,0.00019089,2]
[403716710,1769503840839,-866.11133486,0.00019089,2]
[403716713,1769503840848,-1539.7534842,0.00019089,2]
[403716715,1769503840858,-303.10001603,0.00019089,2]
[403716717,1769503840867,-295.72213414,0.00019089,2]
[403716719,1769503840876,-303.10001603,0.00019089,2]
[403716721,1769503840886,-322.4317547,0.00019089,2]
[403716723,1769503840894,-846.63,0.00019178,2]
[403716725,1769503840903,-1269.96,0.00019178,2]
[403716727,1769503840912,-168.0,0.00019238,2]
[403716729,1769503840921,-387.49207028,0.00019261,2]
[403716731,1769503840929,-303.10001603,0.00019278,2]
[403716733,1769503840938,-303.10001603,0.00019278,2]
[403716735,1769503840947,-157.69654565,0.00019288,30]
[403716737,1769503840957,-729.0,0.0001936,2]
[403716739,1769503840966,-238.12601545,0.0001937,3]
[403716741,1769503840976,-303.10001603,0.00019467,2]
[403716743,1769503840984,-303.10001607,0.00019467,2]
[403716745,1769503840994,-595.37131296,0.000195,2]
[403716747,1769503841003,-32261.07,0.000195,2]
[403716749,1769503841012,-2876.18991768,0.000195,2]
[403716751,1769503841021,-437.5566898,0.000195,2]
[403716753,1769503841029,-729.0,0.0001952,2]
[403716755,1769503841038,-1152.0,0.00019534,2]
[403716757,1769503841047,-874.23255692,0.00019573,2]
[403716759,1769503841057,-500.0,0.00019599,2]
[403716761,1769503841066,-500.0,0.00019599,2]
[403716762,1769503841075,-500.0,0.00019599,2]
[403716764,1769503841085,-492.70915793,0.00019599,2]
[403716766,1769503841094,-315.983,0.000196,2]
[403716768,1769503841102,-316330.76995932,0.000196,2]
[403716771,1769503841113,-800.0,0.00019627,2]
[403716773,1769503841122,-800.0,0.00019634,2]
[403716775,1769503841134,-303.10001603,0.00019656,2]
[403716777,1769503841143,-800.0,0.00019662,2]
[403716779,1769503841152,-161.0,0.0001968,2]
[403716781,1769503841161,-729.0,0.0001968,2]
[403716782,1769503841171,-168.11,0.000197,2]
[403716783,1769503841180,-168.0,0.00019814,2]
[403716784,1769503841188,-454.65002405,0.00019845,4]
[403716785,1769503841197,-1645.161661,0.0001986,5]
[403716786,1769503841208,-168.0,0.0001986,2]
[403716787,1769503841217,-196.704272,0.00019863,7]
[403716788,1769503841226,-1000.0,0.0001988,5]
[403716789,1769503841235,-1000.0,0.000199,5]
[403716790,1769503841244,-1191.952262,0.000199,7]
[403716791,1769503841254,-664.0,0.000199,2]
[403716792,1769503841262,-9572.99653485,0.000199,2]
[403716793,1769503841271,-687.52915862,0.00019901,7]
[403716794,1769503841286,-1158.71770282,0.00019901,7]
[403716795,1769503841297,-180.04189456,0.00019901,7]
[403716796,1769503841306,-3540.45885796,0.00019904,7]
[403716797,1769503841317,-625.57265604,0.00019904,7]
[403716798,1769503841326,-77.89208689,0.00019904,7]
[403716799,1769503841337,-1842.95505644,0.00019904,7]
[403716800,1769503841347,-418.49770858,0.00019904,7]
[403716801,1769503841362,-4971.11304703,0.00019904,7]
[403716802,1769503841373,-7476.18728706,0.00019904,7]
[403716803,1769503841382,-155.661959,0.00019904,7]
[403716804,1769503841391,-251.30898,0.00019904,7]
[403716805,1769503841399,-975.22415213,0.0001992,5]
[403716806,1769503841410,-24.77584787,0.0001992,5]
[403716807,1769503841419,-197.724579,0.0001992,7]
[403716808,1769503841427,-2185.746581,0.0001992,7]
[403716809,1769503841436,-1000.0,0.0001994,5]
[403716810,1769503841445,-1000.0,0.0001996,5]
[403716811,1769503841455,-198.207878,0.0001996,7]
[403716813,1769503841463,-168.0,0.0001997,2]
[403716815,1769503841472,-1000.0,0.0001998,5]
[403716817,1769503841482,-168.0,0.00019983,2]
[403716819,1769503841490,-4578.71567694,0.0002,2]
[403716821,1769503841501,-13043.21788545,0.0002,2]
[403716823,1769503841512,-99495.56538688,0.0002,2]
[403716826,1769503841527,-43987.90954533,0.0002,2]
[403716850,1769503841746,-151.0,0.00018404,2]
[403716852,1769503841756,-475.0,0.00019068,2]
[403716854,1769503841765,-475.0,0.00019068,2]
[403716856,1769503841775,-475.0,0.00019068,2]
[403716858,1769503841784,-450.4,0.00019178,2]
[403716860,1769503841793,-77412.02678816,0.0002,2]
[403716863,1769503841804,-617.93807449,0.0002,2]
[403716865,1769503841816,-1099.63409343,0.0002,2]
[403716868,1769503841838,-6272.37519345,0.0002,2]
[403716871,1769503841850,-526.30212007,0.0002,2]
[403717003,1769503845079,-157.47590888,0.00018404,2]
[403717004,1769503845088,-1312.55278241,0.0002,2]
[403717005,1769503845099,-10715.0615411,0.0002,2]
[403717014,1769503846203,-1882.88523597,0.0002,2]
[403717015,1769503846253,-8695.74098176,0.0002,2]
[403717016,1769503846268,-2666.94783362,0.0002,2]
[403717017,1769503846279,-1893.67557678,0.0002,2]
[403717018,1769503846311,-10609.8123531,0.0002,2]
[403717019,1769504124985,-522.6486575,0.00013273,2]
[403717020,1769504125008,-84.93288142,0.00013398,2]
[403717021,1769504127079,-592.33500971,0.00013398,2]
[403717022,1769504128627,-300.80359074,0.00013398,2]
[403717023,1769504130787,-300.0,0.00013398,2]
[403717024,1769504133583,-316.88706741,0.00013398,2]
[403717025,1769504135188,-295.90074813,0.00013398,2]
[403717026,1769504136734,-154.54,0.00013398,2]
[403717027,1769504142473,-801.85566417,0.00013398,2]
[403717028,1769504146459,-178.58301554,0.00013398,2]
[403717029,1769504148586,-728.31085993,0.00013398,2]
[403717030,1769504150775,-300.0,0.00013398,2]
[403717031,1769504152397,-205.77573793,0.00013398,2]
[403717032,1769504157996,-157.52,0.00013398,2]
[403717033,1769504171199,-181.33758206,0.00013398,2]
[403717034,1769504185220,-401.21784296,0.00013398,2]
[403717035,1769504185241,-1.03528916,0.00013433,2]
[403717036,1769504199936,-226.2233588,0.00013433,2]
[403717037,1769504199959,-64.71959131,0.00013465,2]
[403717038,1769504204301,-351.77805452,0.00013299,2]
[403717039,1769504205932,-184.43475781,0.00013299,2]
[403717040,1769504207505,-183.06853102,0.00013299,2]
[403717041,1769504212984,-296.12929703,0.00013299,2]
[403717042,1769504259409,-232.04407171,0.00013166,2]
[403717045,1769504448394,-304.16874062,0.00012904,2]
[403717046,1769504448421,-4391.67251876,0.00013034,2]
[403717047,1769504448455,-608.32748124,0.00013034,2]
[403717048,1769504448610,-605.0,0.00013034,2]
[403717049,1769504448637,-269.87049444,0.00013219,2]
[403717050,1769504448664,-500.0,0.00013273,2]
[403717051,1769504448691,-151.0,0.00013524,2]
[403717052,1769504448717,-190.88320984,0.00013524,2]
[403717053,1769504448745,-500.0,0.00013529,2]
[403717054,1769504448773,-500.0,0.00013529,2]
[403717055,1769504448802,-500.0,0.00013529,2]
[403717056,1769504448831,-500.0,0.00013529,2]
[403717057,1769504448858,-187.63079526,0.00013529,2]
[403717058,1769504448888,-500.0,0.00013529,2]
[403717059,1769504448918,-500.0,0.00013529,2]
[403717060,1769504449029,-500.0,0.00013529,2]
[403717061,1769504449058,-500.0,0.00013529,2]
[403717062,1769504449086,-500.0,0.00013529,2]
[403717063,1769504449112,-500.0,0.00013529,2]
[403717064,1769504449141,-500.0,0.00013529,2]
[403717065,1769504449171,-500.0,0.00013529,2]
[403717066,1769504449198,-500.0,0.00013529,2]
[403717067,1769504449226,-500.0,0.00013529,2]
[403717068,1769504449254,-500.0,0.00013529,2]
[403717069,1769504449281,-500.0,0.00013529,2]
[403717070,1769504449385,-500.0,0.00013529,2]
[403717071,1769504449557,-500.0,0.00013529,2]
[403717072,1769504449585,-500.0,0.00013529,2]
[403717073,1769504449610,-395.65653112,0.00013529,2]
[403717074,1769504449639,-500.0,0.00013529,2]
[403717075,1769504449666,-500.0,0.00013529,2]
[403717076,1769504449694,-500.0,0.00013529,2]
[403717077,1769504449722,-500.0,0.00013529,2]
[403717078,1769504449749,-500.0,0.00013529,2]
[403717079,1769504449777,-500.0,0.00013529,2]
[403717080,1769504449862,-500.0,0.00013529,2]
[403717081,1769504449889,-472.77313123,0.00013529,2]
[403717082,1769504449917,-500.0,0.00013529,2]
[403717083,1769504449945,-500.0,0.00013529,2]
[403717084,1769504449972,-500.0,0.00013529,2]
[403717085,1769504449999,-500.0,0.00013529,2]
[403717086,1769504450027,-500.0,0.00013529,2]
[403717087,1769504450054,-500.0,0.00013529,2]
[403717088,1769504450080,-500.0,0.00013529,2]
[403717089,1769504450107,-500.0,0.00013529,2]
[403717090,1769504450684,-427.17480745,0.00013529,2]
[403717091,1769504450703,-54.46373754,0.00013529,2]
[403717092,1769504454652,-18.36145501,0.00013529,2]
[403717093,1769504454680,-500.0,0.00013529,2]
[403717094,1769504454708,-500.0,0.00013529,2]
[403717095,1769504454734,-500.0,0.00013529,2]
[403717096,1769504454763,-500.0,0.00013529,2]
[403717097,1769504454791,-500.0,0.00013529,2]
[403717098,1769504454820,-500.0,0.00013529,2]
[403717099,1769504454850,-252.00756448,0.00013529,2]
[403717100,1769504454878,-500.0,0.00013529,2]
[403717101,1769504454906,-500.0,0.00013529,2]
[403717102,1769504454933,-500.0,0.00013529,2]
[403717103,1769504455060,-500.0,0.00013529,2]
[403717104,1769504455088,-500.0,0.00013529,2]
[403717105,1769504455115,-500.0,0.00013529,2]
[403717106,1769504455143,-500.0,0.00013529,2]
[403717107,1769504455171,-500.0,0.00013529,2]
[403717108,1769504455199,-500.0,0.00013529,2]
[403717109,1769504455228,-500.0,0.00013529,2]
[403717110,1769504455258,-500.0,0.00013529,2]
[403717111,1769504455284,-500.0,0.00013529,2]
[403717112,1769504455311,-258.41706944,0.00013529,2]
[403717113,1769504455425,-500.0,0.00013529,2]
[403717114,1769504455454,-500.0,0.00013529,2]
[403717115,1769504455612,-500.0,0.00013529,2]
[403717116,1769504455643,-500.0,0.00013529,2]
[403717117,1769504455673,-500.0,0.00013529,2]
[403717118,1769504455702,-500.0,0.00013529,2]
[403717119,1769504455732,-500.0,0.00013529,2]
[403717120,1769504455761,-500.0,0.00013529,2]
[403717121,1769504455790,-500.0,0.00013529,2]
[403717122,1769504455818,-500.0,0.00013529,2]
[403717123,1769504456114,-500.0,0.00013529,2]
[403717124,1769504456130,-500.0,0.00013529,2]
[403717125,1769504456143,-0.01,0.00013529,2]
[403717126,1769504461773,-5000.0,0.00013394,2]
[403717127,1769504461824,-0.01,0.00013529,2]
[403717128,1769504461964,-499.98,0.00013529,2]
[403717129,1769504461995,-500.0,0.00013529,2]
[403717130,1769504462024,-500.0,0.00013529,2]
[403717131,1769504462054,-500.0,0.00013529,2]
[403717132,1769504462085,-500.0,0.00013529,2]
[403717133,1769504462114,-500.0,0.00013529,2]
[403717134,1769504462143,-500.0,0.00013529,2]
[403717135,1769504462172,-500.0,0.00013529,2]
[403717136,1769504462202,-500.0,0.00013529,2]
[403717137,1769504462232,-500.0,0.00013529,2]
[403717138,1769504462344,-500.0,0.00013529,2]
[403717139,1769504462372,-500.0,0.00013529,2]
[403717140,1769504462400,-500.0,0.00013529,2]
[403717141,1769504462428,-500.0,0.00013529,2]
[403717142,1769504462460,-500.0,0.00013529,2]
[403717143,1769504462494,-500.0,0.00013529,2]
[403717144,1769504462522,-500.0,0.00013529,2]
[403717145,1769504462550,-500.0,0.00013529,2]
[403717146,1769504462577,-500.0,0.00013529,2]
[403717147,1769504462604,-500.0,0.00013529,2]
[403717148,1769504462708,-500.0,0.00013529,2]
[403717149,1769504462736,-500.0,0.00013529,2]
[403717150,1769504462765,-500.0,0.00013529,2]
[403717151,1769504462792,-633.57233442,0.0001353,2]
[403717152,1769504463116,-0.06,0.00013528,2]
[403717153,1769504463130,-299.94,0.00013528,2]
[403717154,1769504463140,-5432.92533116,0.00013531,2]
[403717155,1769504465338,-10000.01,0.00013531,2]
[403717156,1769504465764,-10000.01,0.00013531,2]
[403717157,1769504468292,-10000.01,0.00013531,2]
[403717158,1769504468465,-10000.01,0.00013531,2]
[403717159,1769504471236,-4567.03466884,0.00013531,2]
[403717160,1769504480049,865.94066232,0.00013531,2]
[403717161,1769504480072,4134.05933768,0.00013531,2]
[403717162,1769504502363,10403.0,0.00028767,120]
[403717164,1769504736110,-154.80238696,0.00012424,2]
[403717165,1769504742734,-267.60530779,0.00012424,2]
[403717166,1769504771013,-183.17143437,0.00012424,2]
[403717167,1769504810664,160.0,0.000301,120]
[403717168,1769504814409,-231.28721696,0.00012424,2]
[403717169,1769504816522,-152.15411431,0.00012424,2]
[403717170,1769504822683,-166.66666668,0.00012424,2]
[403717171,1769504834370,1500.0,0.00030137,120]
[403717172,1769504837206,-163.65673584,0.00012424,2]
[403717173,1769504840610,-507.91922728,0.00012424,2]
[403717174,1769504845791,-174.55863356,0.00012424,2]
[403717175,1769504854082,-935.58047347,0.00012424,2]
[403717176,1769504940879,-5000.0,0.00012177,2]
[403717177,1769504941173,-5000.0,0.000123,2]
[403717178,1769504941323,-273.06031057,0.00012613,2]
[403717179,1769504941350,-162.489025,0.00012646,2]
[403717180,1769504941375,-207.89267664,0.00012804,2]
[403717181,1769504941401,-181.28663924,0.00012804,2]
[403717182,1769504941429,-151.5982351,0.00013272,2]
[403717183,1769504941458,-300.0,0.00013272,2]
[403717184,1769504941485,-500.0,0.00013273,2]
[403717185,1769504941511,-500.0,0.00013273,2]
[403717186,1769504941539,-1000.0,0.00013531,2]
[403717187,1769504941571,-1000.0,0.00013531,2]
[403717188,1769504941597,-447.3562269,0.00013531,2]
[403717189,1769504943734,-552.6437731,0.00013531,2]
[403717190,1769504943761,-1000.0,0.00013531,2]
[403717191,1769504943790,-662.9462241,0.00013531,2]
[403717192,1769504943818,-300.0,0.00013697,2]
[403717193,1769504943845,-500.0,0.00013698,2]
[403717194,1769504943872,-500.0,0.00013698,2]
[403717195,1769504943903,-500.0,0.00013698,2]
[403717196,1769504943933,-300.0,0.00013804,2]
[403717197,1769504943963,-300.0,0.00013804,2]
[403717198,1769504943993,-300.0,0.00013804,2]
[403717199,1769504944193,-300.0,0.00013804,2]
[403717200,1769504944225,-300.0,0.00013804,2]
[403717201,1769504944257,-300.0,0.00013804,2]
[403717202,1769504944288,-300.0,0.00013804,2]
[403717203,1769504944319,-300.0,0.00013804,2]
[403717204,1769504944348,-300.0,0.00013804,2]
[403717205,1769504944377,-300.0,0.00013804,2]
[403717206,1769504944405,-300.0,0.00013804,2]
[403717207,1769504944433,-300.0,0.00013804,2]
[403717208,1769504944461,-300.0,0.00013804,2]
[403717209,1769504944490,-300.0,0.00013804,2]
[403717210,1769504944519,-300.0,0.00013804,2]
[403717211,1769504944548,-600.0,0.00013804,2]
[403717212,1769504944577,-500.0,0.00013817,2]
[403717213,1769504944605,-100.01,0.00013817,2]
[403717214,1769504946872,-399.99,0.00013817,2]
[403717215,1769504946900,-481.04522338,0.00013817,2]
[403717216,1769504946929,-500.0,0.00013817,2]
[403717217,1769504946956,-500.0,0.00013817,2]
[403717218,1769504946984,-500.0,0.00013817,2]
[403717219,1769504947013,-500.0,0.00013817,2]
[403717220,1769504947041,-500.0,0.00013817,2]
[403717221,1769504947069,-500.0,0.00013817,2]
[403717222,1769504947097,-500.0,0.00013817,2]
[403717223,1769504947124,-500.0,0.00013817,2]
[403717224,1769504947326,-500.0,0.00013817,2]
[403717225,1769504947357,-500.0,0.00013817,2]
[403717226,1769504947384,-500.0,0.00013817,2]
[403717227,1769504947412,-651.49432,0.00013817,2]
[403717228,1769504947440,-500.0,0.00013817,2]
[403717229,1769504947468,-500.0,0.00013817,2]
[403717230,1769504947496,-500.0,0.00013817,2]
[403717231,1769504947523,-240.18037553,0.00013817,2]
[403717232,1769504947551,-500.0,0.00013817,2]
[403717233,1769504947580,-500.0,0.00013817,2]
[403717234,1769504950177,-592.60800074,0.00013817,2]
[403717235,1769504950206,-500.0,0.00013817,2]
[403717236,1769504950235,-500.0,0.00013817,2]
[403717237,1769504950265,-500.0,0.00013817,2]
[403717238,1769504950292,-500.0,0.00013817,2]
[403717239,1769504950319,-500.0,0.00013817,2]
[403717240,1769504950348,-500.0,0.00013817,2]
[403717241,1769504950376,-499.99999999,0.00013817,2]
[403717242,1769504950401,-590.03498975,0.00013821,2]
[403717243,1769504950555,-1000.0,0.00013821,2]
[403717244,1769504950581,-328.85776734,0.00013821,2]
[403717245,1769504950936,-4689.75714809,0.00013888,2]
[403717246,1769504953847,-4689.76714809,0.00013888,2]
[403717247,1769504953873,-620.47570382,0.00013888,2]
[403717248,1769504954075,-1000.0,0.00014368,2]
[403717249,1769504954103,-322.21116648,0.00014613,2]
[403717250,1769504954130,-423.9552853,0.00014696,2]
[403717251,1769504954159,-420.0,0.0001501,2]
[403717252,1769504954186,-150.0,0.00016,2]
[403717253,1769504954830,5000.0,0.00013749,2]
[403717282,1769505032105,-397.48856596,0.00016274,2]
[403717283,1769505032160,-4602.51143404,0.00016274,2]
[403717284,1769505032170,-657.0,0.00016274,2]
[403717285,1769505032180,-14230.7530106,0.00016334,2]
[403717287,1769505032190,-266.50698719,0.00016356,2]
[403717289,1769505032199,-250.0,0.00016438,2]
[403717290,1769505032209,-500.0,0.00016438,2]
[403717292,1769505032218,-478.9396042,0.00016467,2]
[403717294,1769505032227,-300.0,0.00016777,2]
[403717295,1769505032236,-300.0,0.00016778,2]
[403717296,1769505032246,-300.0,0.00016778,2]
[403717297,1769505032256,-300.0,0.00016778,2]
[403717298,1769505032265,-300.0,0.00016778,2]
[403717299,1769505032274,-300.0,0.00016778,2]
[403717300,1769505032283,-300.0,0.00016778,2]
[403717302,1769505032292,-300.0,0.00016778,2]
[403717304,1769505032301,-300.0,0.00016778,2]
[403717306,1769505032310,-300.0,0.00016778,2]
[403717308,1769505032320,-300.0,0.00016778,2]
[403717310,1769505032329,-300.0,0.00016778,2]
[403717312,1769505032338,-300.0,0.00016778,2]
[403717314,1769505032348,-300.0,0.00016778,2]
[403717316,1769505032358,-300.0,0.00016778,2]
[403717318,1769505032367,-300.0,0.00016778,2]
[403717320,1769505032376,-170.52,0.00016797,2]
[403717322,1769505032385,-1041.66666667,0.00016986,2]
[403717324,1769505032395,-3881.6630917,0.00017027,2]
[403717326,1769505032405,-163.0,0.00017178,3]
[403717329,1769505032416,-470.17,0.00017261,2]
[403717330,1769505032426,-1563.5437369,0.00018,2]
[403717332,1769505032436,-965.47924049,0.00018127,2]
[403717334,1769505032445,-523.99285484,0.00018305,2]
[403717336,1769505032455,-290.56626595,0.00018305,2]
[403717338,1769505032464,-196.12519612,0.00018305,2]
[403717340,1769505032473,-30000.0,0.00018306,2]